fUST/lending_fUST_20251010
["ID","MTS","AMOUNT","RATE_DAILY","PERIOD"]
[390534025,1760076640414,-469.30839582,0.00016438,2]
[390534026,1760076640425,-500.0,0.00016438,2]
[390534027,1760076640435,-500.43630551,0.00016438,2]
[390534028,1760076640445,-500.0,0.00016438,2]
[390534029,1760076640455,-500.0,0.00016438,2]
[390534030,1760076640464,-500.0,0.00016438,2]
[390534031,1760076640473,-500.0,0.00016438,2]
[390534032,1760076640482,-501.46008985,0.00016438,2]
[390534033,1760076640491,-500.0,0.00016438,2]
[390534034,1760076640500,-500.0,0.00016438,2]
[390534035,1760076640511,-500.0,0.00016438,2]
[390534036,1760076640520,-501.3236961,0.00016438,2]
[390534037,1760076640530,-501.29005317,0.00016438,2]
[390534038,1760076640539,-500.0,0.00016438,2]
[390534039,1760076640548,-502.14845717,0.00016438,2]
[390534040,1760076640557,-500.0,0.00016438,2]
[390534041,1760076640566,-500.0,0.00016438,2]
[390534042,1760076640575,-500.0,0.00016438,2]
[390534043,1760076640584,-500.0,0.00016438,2]
[390534045,1760076640594,-500.0,0.00016438,2]
[390534048,1760076640603,-500.0,0.00016438,2]
[390534050,1760076640613,-500.0,0.00016438,2]
[390534052,1760076640623,-500.0,0.00016438,2]
[390534054,1760076640632,-500.0,0.00016438,2]
[390534055,1760076640642,-500.0,0.00016438,2]
[390534056,1760076640651,-500.0,0.00016438,2]
[390534057,1760076640661,-500.0,0.00016438,2]
[390534058,1760076640670,-500.0,0.00016438,2]
[390534059,1760076640679,-504.06460321,0.00016438,2]
[390534060,1760076640689,-1378.44,0.00016438,2]
[390534061,1760076640699,-500.0,0.00016438,2]
[390534062,1760076640708,-500.44093117,0.00016438,2]
[390534063,1760076640718,-500.0,0.00016438,2]
[390534064,1760076640727,-500.0,0.00016438,2]
[390534065,1760076640737,-500.0,0.00016438,2]
[390534066,1760076640746,-501.10732289,0.00016438,2]
[390534067,1760076640755,-500.0,0.00016438,2]
[390534068,1760076640765,-500.0,0.00016438,2]
[390534069,1760076640775,-500.0,0.00016438,2]
[390534070,1760076640784,-500.0,0.00016438,2]
[390534071,1760076640794,-500.0,0.00016438,2]
[390534072,1760076640803,-500.0,0.00016438,2]
[390534073,1760076640812,-500.0,0.00016438,2]
[390534074,1760076640821,-500.0,0.00016438,2]
[390534075,1760076640831,-500.0,0.00016438,2]
[390534076,1760076640840,-500.0,0.00016438,2]
[390534077,1760076640850,-500.0,0.00016438,2]
[390534078,1760076640859,-500.0,0.00016438,2]
[390534079,1760076640868,-507.13,0.00016438,2]
[390534080,1760076640878,-500.0,0.00016438,2]
[390534081,1760076640887,-500.0,0.00016438,2]
[390534082,1760076640896,-500.0,0.00016438,2]
[390534083,1760076640905,-500.0,0.00016438,2]
[390534084,1760076640916,-500.0,0.00016438,2]
[390534085,1760076640925,-501.79744955,0.00016438,2]
[390534086,1760076640935,-1196.57,0.00016438,2]
[390534087,1760076640943,-500.0,0.00016438,2]
[390534088,1760076640953,-500.0,0.00016438,2]
[390534089,1760076640962,-500.0,0.00016438,2]
[390534090,1760076640971,-500.0,0.00016438,2]
[390534091,1760076640980,-500.0,0.00016438,2]
[390534092,1760076640990,-500.0,0.00016438,2]
[390534093,1760076640999,-501.12466354,0.00016438,2]
[390534094,1760076641009,-500.0,0.00016438,2]
[390534095,1760076641018,-500.0,0.00016438,2]
[390534096,1760076641029,-500.0,0.00016438,2]
[390534097,1760076641040,-7224.18,0.00016438,2]
[390534098,1760076641050,-500.0,0.00016438,2]
[390534099,1760076641059,-500.0,0.00016438,2]
[390534100,1760076641069,-500.0,0.00016438,2]
[390534101,1760076641078,-500.0,0.00016438,2]
[390534102,1760076641088,-502.65792864,0.00016438,2]
[390534103,1760076641098,-500.0,0.00016438,2]
[390534104,1760076641107,-500.0,0.00016438,2]
[390534105,1760076641118,-500.0,0.00016438,2]
[390534106,1760076641127,-500.0,0.00016438,2]
[390534107,1760076641136,-919.69,0.00016438,2]
[390534108,1760076641145,-500.0,0.00016438,2]
[390534109,1760076641155,-499.57675367,0.00016438,2]
[390534110,1760076641164,-500.0,0.00016438,2]
[390534111,1760076641174,-727.77,0.00016438,2]
[390534112,1760076641183,-500.0,0.00016438,2]
[390534113,1760076641192,-500.0,0.00016438,2]
[390534114,1760076641202,-500.0,0.00016438,2]
[390534115,1760076641211,-500.0,0.00016438,2]
[390534116,1760076641221,-500.0,0.00016438,2]
[390534117,1760076641237,-410.00552209,0.00016438,2]
[390534118,1760076641246,-502.01975218,0.00016438,2]
[390534119,1760076641256,-500.0,0.00016438,2]
[390534120,1760076641267,-1000.0,0.00016438,2]
[390534121,1760076641276,-500.0,0.00016438,2]
[390534122,1760076641286,-500.0,0.00016438,2]
[390534123,1760076641295,-501.44451044,0.00016438,2]
[390534124,1760076641309,-502.67585004,0.00016438,2]
[390534125,1760076641319,-500.0,0.00016438,2]
[390534126,1760076641328,-500.0,0.00016438,2]
[390534127,1760076641339,-502.054766,0.00016438,2]
[390534128,1760076641348,-500.0,0.00016438,2]
[390534129,1760076641357,-500.0,0.00016438,2]
[390534130,1760076641367,-500.0,0.00016438,2]
[390534131,1760076641376,-2234.25,0.00016438,2]
[390534132,1760076641385,-500.0,0.00016438,2]
[390534133,1760076641394,-500.0,0.00016438,2]
[390534134,1760076641405,-500.0,0.00016438,2]
[390534135,1760076641416,-944.48,0.00016438,2]
[390534136,1760076641425,-3455.15,0.00016438,2]
[390534137,1760076641435,-500.0,0.00016438,2]
[390534138,1760076641444,-500.0,0.00016438,2]
[390534139,1760076641454,-500.0,0.00016438,2]
[390534140,1760076641464,-3253.29,0.00016438,2]
[390534141,1760076641474,-222.46611655,0.00016438,2]
[390534142,1760076641483,-500.0,0.00016438,2]
[390534143,1760076641493,-4996.75,0.00016438,2]
[390534144,1760076641502,-500.0,0.00016438,2]
[390534145,1760076641512,-5317.9,0.00016438,2]
[390534146,1760076641523,-500.0,0.00016438,2]
[390534147,1760076641532,-500.87353756,0.00016438,2]
[390534148,1760076641541,-500.0,0.00016438,2]
[390534149,1760076641551,-501.37353305,0.00016438,2]
[390534150,1760076641560,-500.0,0.00016438,2]
[390534151,1760076641569,-500.0,0.00016438,2]
[390534152,1760076641578,-500.0,0.00016438,2]
[390534153,1760076641588,-500.0,0.00016438,2]
[390534154,1760076641598,-500.0,0.00016438,2]
[390534155,1760076641607,-500.0,0.00016438,2]
[390534156,1760076641615,-812.9,0.00016438,2]
[390534157,1760076641625,-500.0,0.00016438,2]
[390534158,1760076641634,-500.0,0.00016438,2]
[390534159,1760076641643,-500.0,0.00016438,2]
[390534160,1760076641653,-500.0,0.00016438,2]
[390534161,1760076641662,-567.68992436,0.00016438,2]
[390534162,1760076641672,-1231.01,0.00016438,2]
[390534163,1760076641681,-500.0,0.00016438,2]
[390534164,1760076641690,-500.0,0.00016438,2]
[390534165,1760076641699,-500.0,0.00016438,2]
[390534166,1760076641709,-500.0,0.00016438,2]
[390534167,1760076641718,-500.0,0.00016438,2]
[390534168,1760076641731,-710.02,0.00016438,2]
[390534169,1760076641741,-502.86859448,0.00016438,2]
[390534170,1760076641751,-826.88,0.00016438,2]
[390534171,1760076641761,-500.0,0.00016438,2]
[390534172,1760076641771,-500.0,0.00016438,2]
[390534173,1760076641781,-529.2,0.00016438,2]
[390534174,1760076641791,-500.0,0.00016438,2]
[390534175,1760076641802,-500.0,0.00016438,2]
[390534176,1760076641811,-500.0,0.00016438,2]
[390534177,1760076641822,-752.92,0.00016438,2]
[390534178,1760076641832,-500.0,0.00016438,2]
[390534179,1760076641851,-500.0,0.00016438,2]
[390534180,1760076641862,-500.0,0.00016438,2]
[390534181,1760076641872,-1042.91,0.00016438,2]
[390534182,1760076641882,-500.0,0.00016438,2]
[390534183,1760076641891,-500.0,0.00016438,2]
[390534184,1760076641901,-500.0,0.00016438,2]
[390534185,1760076641911,-500.0,0.00016438,2]
[390534186,1760076641920,-1120.77,0.00016438,2]
[390534187,1760076641930,-964.19,0.00016438,2]
[390534188,1760076641940,-500.0,0.00016438,2]
[390534189,1760076641951,-500.18334127,0.00016438,2]
[390534190,1760076641960,-500.0,0.00016438,2]
[390534191,1760076641970,-500.0,0.00016438,2]
[390534192,1760076641981,-500.0,0.00016438,2]
[390534193,1760076641991,-1392.24,0.00016438,2]
[390534194,1760076642001,-500.0,0.00016438,2]
[390534195,1760076642011,-511.85461427,0.00016438,2]
[390534196,1760076642021,-501.07654025,0.00016438,2]
[390534197,1760076642031,-500.0,0.00016438,2]
[390534198,1760076642041,-3849.02,0.00016438,2]
[390534199,1760076642051,-500.0,0.00016438,2]
[390534200,1760076642061,-1230.59,0.00016438,2]
[390534201,1760076642071,-500.0,0.00016438,2]
[390534202,1760076642082,-565.7,0.00016438,2]
[390534203,1760076642092,-1535.04,0.00016438,2]
[390534204,1760076642102,-500.0,0.00016438,2]
[390534205,1760076642111,-500.0,0.00016438,2]
[390534206,1760076642121,-500.0,0.00016438,2]
[390534207,1760076642130,-500.0,0.00016438,2]
[390534208,1760076642140,-500.0,0.00016438,2]
[390534209,1760076642150,-500.0,0.00016438,2]
[390534210,1760076642160,-500.0,0.00016438,2]
[390534211,1760076642169,-500.0,0.00016438,2]
[390534212,1760076642179,-500.0,0.00016438,2]
[390534213,1760076642188,-500.0,0.00016438,2]
[390534214,1760076642198,-531.89,0.00016438,2]
[390534215,1760076642207,-500.0,0.00016438,2]
[390534216,1760076642217,-3886.39,0.00016438,2]
[390534217,1760076642232,-500.0,0.00016438,2]
[390534218,1760076642241,-500.62038344,0.00016438,2]
[390534219,1760076642251,-500.0,0.00016438,2]
[390534220,1760076642261,-500.0,0.00016438,2]
[390534221,1760076642271,-322.9958514,0.00016438,2]
[390534222,1760076642281,-500.0,0.00016438,2]
[390534223,1760076642290,-712.17,0.00016438,2]
[390534224,1760076642299,-501.11226324,0.00016438,2]
[390534225,1760076642311,-503.19599363,0.00016438,2]
[390534226,1760076642320,-244.73271052,0.00016438,2]
[390534227,1760076642330,-500.47533536,0.00016438,2]
[390534228,1760076642339,-500.0,0.00016438,2]
[390534229,1760076642349,-1004.97,0.00016438,2]
[390534230,1760076642359,-3673.02,0.00016438,2]
[390534231,1760076642368,-3673.02,0.00016438,2]
[390534232,1760076642378,-3673.02,0.00016438,2]
[390534233,1760076642387,-3673.02,0.00016438,2]
[390534234,1760076642397,-500.0,0.00016438,2]
[390534235,1760076642406,-500.0,0.00016438,2]
[390534236,1760076642416,-3673.02,0.00016438,2]
[390534237,1760076642425,-3673.02,0.00016438,2]
[390534238,1760076642436,-3673.02,0.00016438,2]
[390534239,1760076642446,-3673.02,0.00016438,2]
[390534240,1760076642456,-3673.02,0.00016438,2]
[390534241,1760076642465,-3673.02,0.00016438,2]
[390534242,1760076642476,-3673.02,0.00016438,2]
[390534243,1760076642486,-500.0,0.00016438,2]
[390534244,1760076642495,-501.90278055,0.00016438,2]
[390534245,1760076642505,-3673.02,0.00016438,2]
[390534246,1760076642515,-501.60101146,0.00016438,2]
[390534247,1760076642524,-1045.66,0.00016438,2]
[390534248,1760076642535,-742.9,0.00016438,2]
[390534249,1760076642545,-567.42,0.00016438,2]
[390534250,1760076642555,-2003.71,0.00016438,2]
[390534251,1760076642566,-501.4714528,0.00016438,2]
[390534252,1760076642577,-500.0,0.00016438,2]
[390534253,1760076642588,-500.0,0.00016438,2]
[390534254,1760076642601,-500.0,0.00016438,2]
[390534255,1760076642611,-1069.47,0.00016438,2]
[390534256,1760076642621,-824.62,0.00016438,2]
[390534257,1760076642631,-500.0,0.00016438,2]
[390534258,1760076642641,-500.0,0.00016438,2]
[390534259,1760076642650,-501.18658578,0.00016438,2]
[390534260,1760076642660,-500.0,0.00016438,2]
[390534261,1760076642670,-2793.37,0.00016438,2]
[390534262,1760076642680,-500.0,0.00016438,2]
[390534263,1760076642690,-856.22,0.00016438,2]
[390534264,1760076642700,-500.0,0.00016438,2]
[390534265,1760076642709,-500.0,0.00016438,2]
[390534266,1760076642719,-500.0,0.00016438,2]
[390534267,1760076642734,-500.0,0.00016438,2]
[390534268,1760076642744,-500.0,0.00016438,2]
[390534269,1760076642754,-500.0,0.00016438,2]
[390534270,1760076642763,-500.0,0.00016438,2]
[390534271,1760076642777,-500.0,0.00016438,2]
[390534272,1760076642787,-500.4640918,0.00016438,2]
[390534273,1760076642797,-500.0,0.00016438,2]
[390534274,1760076642807,-500.0,0.00016438,2]
[390534275,1760076642817,-500.0,0.00016438,2]
[390534276,1760076642828,-500.0,0.00016438,2]
[390534277,1760076642840,-500.0,0.00016438,2]
[390534282,1760076643041,-500.0,0.00016438,2]
[390534283,1760076643052,-500.0,0.00016438,2]
[390534284,1760076643061,-500.0,0.00016438,2]
[390534285,1760076643071,-760.65,0.00016438,2]
[390534286,1760076643080,-500.0,0.00016438,2]
[390534287,1760076643090,-500.0,0.00016438,2]
[390534288,1760076643100,-500.0,0.00016438,2]
[390534289,1760076643109,-178.82930979,0.00016438,2]
[390534290,1760076643120,-500.0,0.00016438,2]
[390534291,1760076643131,-500.0,0.00016438,2]
[390534292,1760076643141,-891.7,0.00016438,2]
[390534293,1760076643150,-717.76,0.00016438,2]
[390534294,1760076643160,-616.21,0.00016438,2]
[390534295,1760076643170,-1151.16,0.00016438,2]
[390534296,1760076643179,-501.12408537,0.00016438,2]
[390534297,1760076643188,-500.0,0.00016438,2]
[390534298,1760076643198,-500.0,0.00016438,2]
[390534299,1760076643208,-500.8268469,0.00016438,2]
[390534300,1760076643217,-500.0,0.00016438,2]
[390534301,1760076643229,-500.0,0.00016438,2]
[390534302,1760076643247,-500.0,0.00016438,2]
[390534303,1760076643257,-500.0,0.00016438,2]
[390534304,1760076643266,-1702.36,0.00016438,2]
[390534305,1760076643276,-500.0,0.00016438,2]
[390534306,1760076643286,-663.44,0.00016438,2]
[390534307,1760076643295,-5382.02,0.00016438,2]
[390534308,1760076643304,-500.0,0.00016438,2]
[390534310,1760076643315,-500.0,0.00016438,2]
[390534311,1760076643325,-501.35072791,0.00016438,2]
[390534312,1760076643334,-500.0,0.00016438,2]
[390534313,1760076643344,-1137.48,0.00016438,2]
[390534314,1760076643353,-500.0,0.00016438,2]
[390534315,1760076643362,-500.0,0.00016438,2]
[390534316,1760076643372,-569.02,0.00016438,2]
[390534317,1760076643382,-891.51,0.00016438,2]
[390534318,1760076643392,-500.0,0.00016438,2]
[390534319,1760076643408,-500.0,0.00016438,2]
[390534320,1760076643417,-500.0,0.00016438,2]
[390534321,1760076643426,-500.0,0.00016438,2]
[390534322,1760076643435,-581.3,0.00016438,2]
[390534323,1760076643444,-527.5060411,0.00016438,2]
[390534324,1760076643454,-2093.38,0.00016438,2]
[390534325,1760076643463,-500.0,0.00016438,2]
[390534326,1760076643472,-500.0,0.00016438,2]
[390534327,1760076643481,-500.0,0.00016438,2]
[390534328,1760076643491,-623.66,0.00016438,2]
[390534329,1760076643500,-500.0,0.00016438,2]
[390534330,1760076643509,-500.0,0.00016438,2]
[390534331,1760076643518,-500.0,0.00016438,2]
[390534332,1760076643527,-500.0,0.00016438,2]
[390534333,1760076643536,-500.6091402,0.00016438,2]
[390534334,1760076643545,-1764.22,0.00016438,2]
[390534335,1760076643555,-1476.57,0.00016438,2]
[390534336,1760076643564,-610.51,0.00016438,2]
[390534337,1760076643574,-500.0,0.00016438,2]
[390534338,1760076643584,-243.81529387,0.00016438,2]
[390534339,1760076643593,-500.0,0.00016438,2]
[390534340,1760076643603,-2341.34,0.00016438,2]
[390534341,1760076643612,-500.0,0.00016438,2]
[390534342,1760076643621,-501.87926337,0.00016438,2]
[390534343,1760076643630,-500.0,0.00016438,2]
[390534344,1760076643639,-500.0,0.00016438,2]
[390534345,1760076643649,-500.70192007,0.00016438,2]
[390534346,1760076643658,-500.0,0.00016438,2]
[390534347,1760076643667,-3110.21,0.00016438,2]
[390534348,1760076643676,-500.0,0.00016438,2]
[390534349,1760076643686,-500.0,0.00016438,2]
[390534350,1760076643696,-500.0,0.00016438,2]
[390534351,1760076643706,-500.0,0.00016438,2]
[390534352,1760076643715,-500.0,0.00016438,2]
[390534353,1760076643724,-1292.16,0.00016438,2]
[390534354,1760076643734,-503.11882151,0.00016438,2]
[390534355,1760076643743,-488.61603708,0.00016438,2]
[390534356,1760076643753,-500.0,0.00016438,2]
[390534357,1760076643763,-500.0,0.00016438,2]
[390534358,1760076643772,-500.0,0.00016438,2]
[390534359,1760076643780,-500.0,0.00016438,2]
[390534360,1760076643790,-256.22024761,0.00016438,2]
[390534361,1760076643799,-1384.0,0.00016456,2]
[390534362,1760076643807,-3673.02,0.00016464,2]
[390534363,1760076643816,-3425.0,0.00016465,2]
[390534364,1760076643826,-1384.0,0.00016469,2]
[390534365,1760076643835,-2198.90281802,0.00016483,2]
[390534366,1760076643844,-1100.91344961,0.00016612,2]
[390534367,1760076643854,-1127.0,0.0001662,2]
[390534368,1760076643863,-428.83625462,0.00016636,2]
[390534369,1760076643872,-412.83,0.00016665,2]
[390534370,1760076643880,-3673.02,0.0001671,2]
[390534371,1760076643890,-3673.02,0.00016711,2]
[390534372,1760076643899,-3673.02,0.00016711,2]
[390534373,1760076643908,-3673.02,0.00016711,2]
[390534374,1760076643917,-3673.02,0.00016711,2]
[390534375,1760076643927,-3673.02,0.00016711,2]
[390534376,1760076643936,-3673.02,0.00016711,2]
[390534377,1760076643945,-3673.02,0.00016711,2]
[390534378,1760076643955,-3673.02,0.00016711,2]
[390534379,1760076643964,-3673.02,0.00016711,2]
[390534380,1760076643973,-3673.14809889,0.00016711,2]
[390534381,1760076643982,-501.21198295,0.00016712,2]
[390534382,1760076643991,-500.0,0.00016712,2]
[390534383,1760076644001,-500.0,0.00016712,2]
[390534384,1760076644010,-500.0,0.00016712,2]
[390534385,1760076644019,-500.0,0.00016712,2]
[390534386,1760076644028,-500.0,0.00016712,2]
[390534387,1760076644037,-500.0,0.00016712,2]
[390534388,1760076644046,-500.0,0.00016712,2]
[390534389,1760076644056,-500.0,0.00016712,2]
[390534390,1760076644065,-500.0,0.00016712,2]
[390534391,1760076644074,-500.0,0.00016712,2]
[390534392,1760076644083,-500.0,0.00016712,2]
[390534393,1760076644093,-500.0,0.00016712,2]
[390534394,1760076644102,-826.52,0.00016712,2]
[390534395,1760076644111,-500.0,0.00016712,2]
[390534396,1760076644120,-947.04,0.00016712,2]
[390534397,1760076644129,-504.57924601,0.00016712,2]
[390534398,1760076644138,-500.0,0.00016712,2]
[390534399,1760076644147,-510.21595832,0.00016712,2]
[390534400,1760076644156,-477.03086216,0.00016712,2]
[390534401,1760076644165,-500.0,0.00016712,2]
[390534402,1760076644175,-500.0,0.00016712,2]
[390534403,1760076644183,-500.0,0.00016712,2]
[390534404,1760076644192,-500.0,0.00016712,2]
[390534405,1760076644201,-500.0,0.00016712,2]
[390534406,1760076644210,-500.0,0.00016712,2]
[390534407,1760076644219,-500.0,0.00016712,2]
[390534408,1760076644233,-281.44631974,0.00016712,2]
[390534409,1760076644242,-500.0,0.00016712,2]
[390534410,1760076644251,-500.0,0.00016712,2]
[390534411,1760076644260,-500.0,0.00016712,2]
[390534412,1760076644270,-500.0,0.00016712,2]
[390534413,1760076644279,-500.0,0.00016712,2]
[390534414,1760076644293,-500.0,0.00016712,2]
[390534415,1760076644303,-500.0,0.00016712,2]
[390534416,1760076644313,-500.0,0.00016712,2]
[390534417,1760076644322,-500.0,0.00016712,2]
[390534418,1760076644331,-504.34556787,0.00016712,2]
[390534419,1760076644340,-500.0,0.00016712,2]
[390534420,1760076644349,-500.0,0.00016712,2]
[390534421,1760076644358,-500.0,0.00016712,2]
[390534422,1760076644367,-500.0,0.00016712,2]
[390534423,1760076644378,-500.0,0.00016712,2]
[390534424,1760076644388,-500.0,0.00016712,2]
[390534425,1760076644397,-752.22,0.00016712,2]
[390534426,1760076644406,-500.0,0.00016712,2]
[390534427,1760076644415,-500.0,0.00016712,2]
[390534428,1760076644425,-500.0,0.00016712,2]
[390534429,1760076644433,-500.0,0.00016712,2]
[390534430,1760076644444,-151.0,0.00016712,2]
[390534431,1760076644453,-500.0,0.00016712,2]
[390534432,1760076644462,-500.0,0.00016712,2]
[390534433,1760076644471,-500.0,0.00016712,2]
[390534434,1760076644480,-500.0,0.00016712,2]
[390534435,1760076644489,-500.0,0.00016712,2]
[390534436,1760076644498,-500.0,0.00016712,2]
[390534437,1760076644507,-500.69808346,0.00016712,2]
[390534438,1760076644516,-500.0,0.00016712,2]
[390534439,1760076644525,-500.0,0.00016712,2]
[390534440,1760076644535,-500.0,0.00016712,2]
[390534441,1760076644544,-1067.5,0.00016712,2]
[390534442,1760076644553,-500.0,0.00016712,2]
[390534443,1760076644561,-151.0,0.00016712,2]
[390534444,1760076644570,-500.0,0.00016712,2]
[390534445,1760076644579,-500.0,0.00016712,2]
[390534446,1760076644588,-500.0,0.00016712,2]
[390534447,1760076644598,-500.0,0.00016712,2]
[390534448,1760076644607,-500.0,0.00016712,2]
[390534449,1760076644616,-151.0,0.00016712,2]
[390534450,1760076644625,-500.0,0.00016712,2]
[390534451,1760076644634,-151.0,0.00016712,2]
[390534452,1760076644643,-500.0,0.00016712,2]
[390534453,1760076644652,-500.0,0.00016712,2]
[390534454,1760076644662,-500.0,0.00016712,2]
[390534455,1760076644671,-500.0,0.00016712,2]
[390534456,1760076644680,-386.17919726,0.00016712,2]
[390534457,1760076644690,-189.29873602,0.00016712,2]
[390534458,1760076644699,-151.0,0.00016712,2]
[390534459,1760076644709,-500.0,0.00016712,2]
[390534460,1760076644719,-252.52752145,0.00016712,2]
[390534461,1760076644729,-928.41,0.00016712,2]
[390534462,1760076644739,-500.0,0.00016712,2]
[390534463,1760076644748,-151.0,0.00016712,2]
[390534464,1760076644758,-500.0,0.00016712,2]
[390534465,1760076644767,-853.85,0.00016712,2]
[390534466,1760076644776,-200.0,0.00016712,2]
[390534467,1760076644785,-500.0,0.00016712,2]
[390534468,1760076644794,-500.0,0.00016712,2]
[390534469,1760076644803,-500.0,0.00016712,2]
[390534470,1760076644812,-500.0,0.00016712,2]
[390534471,1760076644821,-500.0,0.00016712,2]
[390534472,1760076644831,-500.0,0.00016712,2]
[390534473,1760076644840,-481.71365748,0.00016712,2]
[390534474,1760076644849,-500.0,0.00016712,2]
[390534475,1760076644858,-500.0,0.00016712,2]
[390534476,1760076644867,-500.0,0.00016712,2]
[390534477,1760076644876,-500.0,0.00016712,2]
[390534478,1760076644885,-500.0,0.00016712,2]
[390534479,1760076644894,-500.0,0.00016712,2]
[390534480,1760076644903,-500.0,0.00016712,2]
[390534481,1760076644912,-1008.81,0.00016712,2]
[390534482,1760076644921,-500.0,0.00016712,2]
[390534483,1760076644930,-500.0,0.00016712,2]
[390534484,1760076644938,-500.0,0.00016712,2]
[390534485,1760076644947,-500.0,0.00016712,2]
[390534486,1760076644956,-500.0,0.00016712,2]
[390534487,1760076644966,-477.73133279,0.00016712,2]
[390534488,1760076644975,-500.0,0.00016712,2]
[390534489,1760076644984,-872.46,0.00016712,2]
[390534490,1760076644993,-500.0,0.00016712,2]
[390534491,1760076645002,-500.0,0.00016712,2]
[390534492,1760076645011,-502.4887335,0.00016712,2]
[390534493,1760076645020,-500.0,0.00016712,2]
[390534494,1760076645030,-164.54126561,0.00016712,2]
[390534495,1760076645039,-349.14356947,0.00016712,2]
[390534496,1760076645048,-500.0,0.00016712,2]
[390534497,1760076645058,-500.0,0.00016712,2]
[390534498,1760076645067,-500.0,0.00016712,2]
[390534499,1760076645077,-500.0,0.00016712,2]
[390534500,1760076645086,-500.0,0.00016712,2]
[390534501,1760076645095,-500.0,0.00016712,2]
[390534502,1760076645105,-500.0,0.00016712,2]
[390534503,1760076645115,-500.0,0.00016712,2]
[390534504,1760076645124,-151.824686,0.00016712,2]
[390534505,1760076645133,-500.0,0.00016712,2]
[390534506,1760076645142,-500.0,0.00016712,2]
[390534507,1760076645152,-500.0,0.00016712,2]
[390534508,1760076645161,-500.0,0.00016712,2]
[390534509,1760076645170,-500.0,0.00016712,2]
[390534510,1760076645180,-500.0,0.00016712,2]
[390534511,1760076645189,-500.0,0.00016712,2]
[390534512,1760076645199,-151.0,0.00016712,2]
[390534513,1760076645208,-500.0,0.00016712,2]
[390534514,1760076645218,-153.062202,0.00016712,2]
[390534515,1760076645231,-500.0,0.00016712,2]
[390534516,1760076645240,-500.0,0.00016712,2]
[390534517,1760076645249,-500.0,0.00016712,2]
[390534518,1760076645259,-151.0,0.00016712,2]
[390534519,1760076645270,-502.97479486,0.00016712,2]
[390534520,1760076645279,-151.0,0.00016712,2]
[390534521,1760076645289,-1378.44,0.00016712,2]
[390534522,1760076645298,-502.68734328,0.00016712,2]
[390534523,1760076645313,-151.0,0.00016712,2]
[390534524,1760076645323,-500.0,0.00016712,2]
[390534525,1760076645331,-500.66305719,0.00016712,2]
[390534526,1760076645341,-534.78,0.00016712,2]
[390534527,1760076645350,-151.0,0.00016712,2]
[390534528,1760076645359,-500.0,0.00016712,2]
[390534529,1760076645368,-151.0,0.00016712,2]
[390534530,1760076645378,-151.0,0.00016712,2]
[390534531,1760076645387,-500.0,0.00016712,2]
[390534532,1760076645396,-151.0,0.00016712,2]
[390534533,1760076645405,-500.0,0.00016712,2]
[390534534,1760076645414,-151.0,0.00016712,2]
[390534535,1760076645423,-502.03919439,0.00016712,2]